Workbook

Sheet data
A1: month | B1: # residential building permits | C1: value residential building permits | D1: v_rbp1
A2: 1997-01-01 | B2: 4 | C2: 515 | D2: 515000
A3: 1997-02-01 | B3: 12 | C3: 1116 | D3: 1116000
A4: 1997-03-01 | B4: 32 | C4: 3289 | D4: 3289000
A5: 1997-04-01 | B5: 71 | C5: 7243 | D5: 7243000
A6: 1997-05-01 | B6: 80 | C6: 8683 | D6: 8683000
A7: 1997-06-01 | B7: 58 | C7: 7120 | D7: 7120000
A8: 1997-07-01 | B8: 52 | C8: 5171 | D8: 5171000
A9: 1997-08-01 | B9: 56 | C9: 6334 | D9: 6334000
A10: 1997-09-01 | B10: 58 | C10: 6369 | D10: 6369000
A11: 1997-10-01 | B11: 63 | C11: 7390 | D11: 7390000
A12: 1997-11-01 | B12: 41 | C12: 5070 | D12: 5070000
A13: 1997-12-01 | B13: 20 | C13: 1962 | D13: 1962000
A14: 1998-01-01 | B14: 4 | C14: 440 | D14: 440000
A15: 1998-02-01 | B15: 20 | C15: 2238 | D15: 2238000
A16: 1998-03-01 | B16: 62 | C16: 6486 | D16: 6486000
A17: 1998-04-01 | B17: 67 | C17: 7665 | D17: 7665000
A18: 1998-05-01 | B18: 58 | C18: 6620 | D18: 6620000
A19: 1998-06-01 | B19: 68 | C19: 8199 | D19: 8199000
A20: 1998-07-01 | B20: 48 | C20: 5147 | D20: 5147000
A21: 1998-08-01 | B21: 52 | C21: 5649 | D21: 5649000
A22: 1998-09-01 | B22: 77 | C22: 9358 | D22: 9358000
A23: 1998-10-01 | B23: 67 | C23: 7637 | D23: 7637000
A24: 1998-11-01 | B24: 42 | C24: 5410 | D24: 5410000
A25: 1998-12-01 | B25: 30 | C25: 2929 | D25: 2929000
A26: 1999-01-01 | B26: 12 | C26: 1281 | D26: 1281000
A27: 1999-02-01 | B27: 12 | C27: 1539 | D27: 1539000
A28: 1999-03-01 | B28: 57 | C28: 6588 | D28: 6588000
A29: 1999-04-01 | B29: 73 | C29: 9268 | D29: 9268000
A30: 1999-05-01 | B30: 69 | C30: 7349 | D30: 7349000
A31: 1999-06-01 | B31: 52 | C31: 6738 | D31: 6738000
A32: 1999-07-01 | B32: 76 | C32: 10159 | D32: 10159000
A33: 1999-08-01 | B33: 74 | C33: 9139 | D33: 9139000
A34: 1999-09-01 | B34: 66 | C34: 8548 | D34: 8548000
A35: 1999-10-01 | B35: 71 | C35: 9661 | D35: 9661000
A36: 1999-11-01 | B36: 65 | C36: 9038 | D36: 9038000
A37: 1999-12-01 | B37: 24 | C37: 2418 | D37: 2418000
A38: 2000-01-01 | B38: 5 | C38: 773 | D38: 773000
A39: 2000-02-01 | B39: 23 | C39: 3222 | D39: 3222000
A40: 2000-03-01 | B40: 77 | C40: 10865 | D40: 10865000
A41: 2000-04-01 | B41: 88 | C41: 11460 | D41: 11460000
A42: 2000-05-01 | B42: 81 | C42: 9897 | D42: 9897000
A43: 2000-06-01 | B43: 64 | C43: 8415 | D43: 8415000
A44: 2000-07-01 | B44: 72 | C44: 9429 | D44: 9429000
A45: 2000-08-01 | B45: 82 | C45: 9754 | D45: 9754000
A46: 2000-09-01 | B46: 67 | C46: 7498 | D46: 7498000
A47: 2000-10-01 | B47: 98 | C47: 13347 | D47: 13347000
A48: 2000-11-01 | B48: 58 | C48: 9014 | D48: 9014000
A49: 2000-12-01 | B49: 10 | C49: 739 | D49: 739000
A50: 2001-01-01 | B50: 13 | C50: 1496 | D50: 1496000
A51: 2001-02-01 | B51: 21 | C51: 2779 | D51: 2779000
A52: 2001-03-01 | B52: 52 | C52: 6428 | D52: 6428000
A53: 2001-04-01 | B53: 80 | C53: 12796 | D53: 12796000
A54: 2001-05-01 | B54: 77 | C54: 9689 | D54: 9689000
A55: 2001-06-01 | B55: 65 | C55: 8382 | D55: 8382000
A56: 2001-07-01 | B56: 94 | C56: 11633 | D56: 11633000
A57: 2001-08-01 | B57: 64 | C57: 8364 | D57: 8364000
A58: 2001-09-01 | B58: 73 | C58: 9053 | D58: 9053000
A59: 2001-10-01 | B59: 104 | C59: 14422 | D59: 14422000
A60: 2001-11-01 | B60: 36 | C60: 4691 | D60: 4691000
A61: 2001-12-01 | B61: 33 | C61: 3831 | D61: 3831000
A62: 2002-01-01 | B62: 12 | C62: 1831 | D62: 1831000
A63: 2002-02-01 | B63: 32 | C63: 3205 | D63: 3205000
A64: 2002-03-01 | B64: 49 | C64: 6574 | D64: 6574000
A65: 2002-04-01 | B65: 93 | C65: 13762 | D65: 13762000
A66: 2002-05-01 | B66: 85 | C66: 10504 | D66: 10504000
A67: 2002-06-01 | B67: 90 | C67: 9347 | D67: 9347000
A68: 2002-07-01 | B68: 75 | C68: 10456 | D68: 10456000
A69: 2002-08-01 | B69: 99 | C69: 12878 | D69: 12878000
A70: 2002-09-01 | B70: 74 | C70: 10094 | D70: 10094000
A71: 2002-10-01 | B71: 74 | C71: 11953 | D71: 11953000
A72: 2002-11-01 | B72: 44 | C72: 7240 | D72: 7240000
A73: 2002-12-01 | B73: 18 | C73: 2141 | D73: 2141000
A74: 2003-01-01 | B74: 17 | C74: 2166 | D74: 2166000
A75: 2003-02-01 | B75: 15 | C75: 2515 | D75: 2515000
A76: 2003-03-01 | B76: 33 | C76: 4864 | D76: 4864000
A77: 2003-04-01 | B77: 111 | C77: 16236 | D77: 16236000
A78: 2003-05-01 | B78: 100 | C78: 14567 | D78: 14567000
A79: 2003-06-01 | B79: 73 | C79: 10694 | D79: 10694000
A80: 2003-07-01 | B80: 68 | C80: 9453 | D80: 9453000
A81: 2003-08-01 | B81: 97 | C81: 15155 | D81: 15155000
A82: 2003-09-01 | B82: 106 | C82: 15764 | D82: 15764000
A83: 2003-10-01 | B83: 103 | C83: 15533 | D83: 15533000
A84: 2003-11-01 | B84: 51 | C84: 7933 | D84: 7933000
A85: 2003-12-01 | B85: 23 | C85: 3130 | D85: 3130000
A86: 2004-01-01 | B86: 13 | C86: 1350 | D86: 1350000
A87: 2004-02-01 | B87: 15 | C87: 2488 | D87: 2488000
A88: 2004-03-01 | B88: 57 | C88: 9060 | D88: 9060000
A89: 2004-04-01 | B89: 92 | C89: 14593 | D89: 14593000
A90: 2004-05-01 | B90: 103 | C90: 16067 | D90: 16067000
A91: 2004-06-01 | B91: 91 | C91: 13700 | D91: 13700000
A92: 2004-07-01 | B92: 84 | C92: 11068 | D92: 11068000
A93: 2004-08-01 | B93: 81 | C93: 12918 | D93: 12918000
A94: 2004-09-01 | B94: 66 | C94: 9788 | D94: 9788000
A95: 2004-10-01 | B95: 71 | C95: 11343 | D95: 11343000
A96: 2004-11-01 | B96: 82 | C96: 14924 | D96: 14924000
A97: 2004-12-01 | B97: 22 | C97: 4065 | D97: 4065000
A98: 2005-01-01 | B98: 5 | C98: 910 | D98: 910000
A99: 2005-02-01 | B99: 24 | C99: 3824 | D99: 3824000
A100: 2005-03-01 | B100: 21 | C100: 3228 | D100: 3228000
A101: 2005-04-01 | B101: 62 | C101: 9963 | D101: 9963000
A102: 2005-05-01 | B102: 75 | C102: 11670 | D102: 11670000
A103: 2005-06-01 | B103: 59 | C103: 10027 | D103: 10027000
A104: 2005-07-01 | B104: 34 | C104: 5806 | D104: 5806000
A105: 2005-08-01 | B105: 64 | C105: 11136 | D105: 11136000
A106: 2005-09-01 | B106: 77 | C106: 12551 | D106: 12551000
A107: 2005-10-01 | B107: 72 | C107: 8903 | D107: 8903000
A108: 2005-11-01 | B108: 46 | C108: 6478 | D108: 6478000
A109: 2005-12-01 | B109: 13 | C109: 2111 | D109: 2111000
A110: 2006-01-01 | B110: 9 | C110: 1353 | D110: 1353000
A111: 2006-02-01 | B111: 38 | C111: 6254 | D111: 6254000
A112: 2006-03-01 | B112: 29 | C112: 5940 | D112: 5940000
A113: 2006-04-01 | B113: 59 | C113: 9048 | D113: 9048000
A114: 2006-05-01 | B114: 88 | C114: 11629 | D114: 11629000
A115: 2006-06-01 | B115: 49 | C115: 7835 | D115: 7835000
A116: 2006-07-01 | B116: 46 | C116: 7596 | D116: 7596000
A117: 2006-08-01 | B117: 76 | C117: 10963 | D117: 10963000
A118: 2006-09-01 | B118: 44 | C118: 6416 | D118: 6416000
A119: 2006-10-01 | B119: 64 | C119: 10654 | D119: 10654000
A120: 2006-11-01 | B120: 37 | C120: 5839 | D120: 5839000
A121: 2006-12-01 | B121: 15 | C121: 2258 | D121: 2258000
A122: 2007-01-01 | B122: 10 | C122: 1392 | D122: 1392000
A123: 2007-02-01 | B123: 12 | C123: 1746 | D123: 1746000
A124: 2007-03-01 | B124: 34 | C124: 5362 | D124: 5362000
A125: 2007-04-01 | B125: 42 | C125: 7227 | D125: 7227000
A126: 2007-05-01 | B126: 66 | C126: 9303 | D126: 9303000
A127: 2007-06-01 | B127: 45 | C127: 6942 | D127: 6942000
A128: 2007-07-01 | B128: 50 | C128: 7451 | D128: 7451000
A129: 2007-08-01 | B129: 42 | C129: 7574 | D129: 7574000
A130: 2007-09-01 | B130: 40 | C130: 7539 | D130: 7539000
A131: 2007-10-01 | B131: 67 | C131: 11315 | D131: 11315000
A132: 2007-11-01 | B132: 35 | C132: 5882 | D132: 5882000
A133: 2007-12-01 | B133: 15 | C133: 2856 | D133: 2856000
A134: 2008-01-01 | B134: 9 | C134: 1523 | D134: 1523000
A135: 2008-02-01 | B135: 4 | C135: 625 | D135: 625000
A136: 2008-03-01 | B136: 10 | C136: 1489 | D136: 1489000
A137: 2008-04-01 | B137: 33 | C137: 4682 | D137: 4682000
A138: 2008-05-01 | B138: 36 | C138: 4792 | D138: 4792000
A139: 2008-06-01 | B139: 32 | C139: 6562 | D139: 6562000
A140: 2008-07-01 | B140: 20 | C140: 2933 | D140: 2933000
A141: 2008-08-01 | B141: 26 | C141: 4883 | D141: 4883000
A142: 2008-09-01 | B142: 54 | C142: 7995 | D142: 7995000
A143: 2008-10-01 | B143: 44 | C143: 6897 | D143: 6897000
A144: 2008-11-01 | B144: 16 | C144: 3158 | D144: 3158000
A145: 2008-12-01 | B145: 10 | C145: 1285 | D145: 1285000
A146: 2009-01-01 | B146: 0 | C146: 0 | D146: 0
A147: 2009-02-01 | B147: 2 | C147: 230 | D147: 230000
A148: 2009-03-01 | B148: 7 | C148: 1568 | D148: 1568000
A149: 2009-04-01 | B149: 18 | C149: 2281 | D149: 2281000
A150: 2009-05-01 | B150: 27 | C150: 4262 | D150: 4262000
A151: 2009-06-01 | B151: 27 | C151: 4170 | D151: 4170000
A152: 2009-07-01 | B152: 25 | C152: 3726 | D152: 3726000
A153: 2009-08-01 | B153: 38 | C153: 5129 | D153: 5129000
A154: 2009-09-01 | B154: 48 | C154: 8104 | D154: 8104000
A155: 2009-10-01 | B155: 47 | C155: 5532 | D155: 5532000
A156: 2009-11-01 | B156: 15 | C156: 2182 | D156: 2182000
A157: 2009-12-01 | B157: 13 | C157: 2261 | D157: 2261000
A158: 2010-01-01 | B158: 9 | C158: 942 | D158: 942000
A159: 2010-02-01 | B159: 7 | C159: 1111 | D159: 1111000
A160: 2010-03-01 | B160: 12 | C160: 1767 | D160: 1767000
A161: 2010-04-01 | B161: 36 | C161: 7025 | D161: 7025000
A162: 2010-05-01 | B162: 31 | C162: 6326 | D162: 6326000
A163: 2010-06-01 | B163: 44 | C163: 5900 | D163: 5900000
A164: 2010-07-01 | B164: 22 | C164: 2607 | D164: 2607000
A165: 2010-08-01 | B165: 28 | C165: 3444 | D165: 3444000
A166: 2010-09-01 | B166: 20 | C166: 3414 | D166: 3414000
A167: 2010-10-01 | B167: 27 | C167: 5154 | D167: 5154000
A168: 2010-11-01 | B168: 9 | C168: 3199 | D168: 3199000
A169: 2010-12-01 | B169: 5 | C169: 775 | D169: 775000
A170: 2011-01-01 | B170: 2 | C170: 1160 | D170: 1160000
A171: 2011-02-01 | B171: 3 | C171: 851 | D171: 851000
A172: 2011-03-01 | B172: 6 | C172: 1233 | D172: 1233000
A173: 2011-04-01 | B173: 18 | C173: 3862 | D173: 3862000
A174: 2011-05-01 | B174: 17 | C174: 3349 | D174: 3349000
A175: 2011-06-01 | B175: 31 | C175: 4494 | D175: 4494000
A176: 2011-07-01 | B176: 21 | C176: 4051 | D176: 4051000
A177: 2011-08-01 | B177: 21 | C177: 3475 | D177: 3475000
A178: 2011-09-01 | B178: 25 | C178: 4131 | D178: 4131000
A179: 2011-10-01 | B179: 25 | C179: 1868 | D179: 1868000
A180: 2011-11-01 | B180: 15 | C180: 2308 | D180: 2308000
A181: 2011-12-01 | B181: 10 | C181: 1825 | D181: 1825000
A182: 2012-01-01 | B182: 1 | C182: 127 | D182: 127000
A183: 2012-02-01 | B183: 15 | C183: 978 | D183: 978000
A184: 2012-03-01 | B184: 17 | C184: 3129 | D184: 3129000
A185: 2012-04-01 | B185: 31 | C185: 5437 | D185: 5437000
A186: 2012-05-01 | B186: 29 | C186: 4785 | D186: 4785000
A187: 2012-06-01 | B187: 28 | C187: 5719 | D187: 5719000
A188: 2012-07-01 | B188: 24 | C188: 3486 | D188: 3486000
A189: 2012-08-01 | B189: 25 | C189: 4956 | D189: 4956000
A190: 2012-09-01 | B190: 22 | C190: 4187 | D190: 4187000
A191: 2012-10-01 | B191: 40 | C191: 9332 | D191: 9332000
A192: 2012-11-01 | B192: 17 | C192: 3471 | D192: 3471000
A193: 2012-12-01 | B193: 3 | C193: 360 | D193: 360000
A194: 2013-01-01 | B194: 7 | C194: 1463 | D194: 1463000
A195: 2013-02-01 | B195: 6 | C195: 1512 | D195: 1512000
A196: 2013-03-01 | B196: 12 | C196: 1978 | D196: 1978000
A197: 2013-04-01 | B197: 16 | C197: 3832 | D197: 3832000
A198: 2013-05-01 | B198: 31 | C198: 6201 | D198: 6201000
A199: 2013-06-01 | B199: 47 | C199: 9228 | D199: 9228000
A200: 2013-07-01 | B200: 30 | C200: 6708 | D200: 6708000
... 31 more rows

Sheet Work details
A1: Residential Building Permits http://www.census.gov/construction/bps/
A3: cvcerd folder, economic indicators folder, data, folder, bldperm_bankrupt_businc folder
A4: File Name: res_build_permit.xls
A6: -Click on Permits by Metropolitan Area (monthly)
A8: -Select the current year from the drop down menu
A10: Then select units and current month from the other drop down menus
A11: -In current month get the number of housing units and find Eau Claire (single family, column 2)
A13: Next select valuation and current month from the other drop down menus
A14: -In current month get the valuation of housing units and find Eau Claire (single family, column 2)
A17: n_rbp1 – Number of residential building permits for single family unit
A18: n_rbpt – Number of residential building permits total
A19: v_rbp1 – Value of residential building permits for single family units ($ 1000s)
A20: v_rbpt – Value of residential building permits total ($ 1000s)
A21: v_rbp1_r96 – Real Value (96) of residential building permits for single family units ($ 1000s)
A22: v_rbpt_r96 – Real Value (96) of residential building permits total ($ 1000s)
A24: *Calculate real $ for value
A26: Report: Pages 19, 20
A27: Web Data Folder, construction_building folder, cvcerd_res_build_permit_data_2010-2019.xls

Sheet mnth-mnth
A1: n_rbp1 | B1: jan | C1: feb | D1: mar | E1: apr | F1: may | G1: jun | H1: jul | I1: aug | J1: sep | K1: oct | L1: nov | M1: dec | N1: total
A2: 2003 | B2: 17 | C2: 15 | D2: 33 | E2: 111 | F2: 100 | G2: 73 | H2: 68 | I2: 97 | J2: 106 | K2: 103 | L2: 51 | M2: 23 | N2: =SUM(B2:M2) -> 797 | O2: =SUM(B2:M2) -> 797
A3: 2004 | B3: 13 | C3: 15 | D3: 57 | E3: 92 | F3: 103 | G3: 91 | H3: 84 | I3: 81 | J3: 66 | K3: 71 | L3: 82 | M3: 22 | N3: 777 | O3: 777
A4: 2005 | B4: 5 | C4: 24 | D4: 22 | E4: 62 | F4: 75 | G4: 59 | H4: 34 | I4: 64 | J4: 77 | K4: 72 | L4: 46 | M4: 13 | N4: 553 | O4: 553
A5: 2006 | B5: 9 | C5: 38 | D5: 29 | E5: 59 | F5: 88 | G5: 49 | H5: 46 | I5: 76 | J5: 44 | K5: 64 | L5: 37 | M5: 15 | N5: 554 | O5: 554
A6: 2007 | B6: 10 | C6: 12 | D6: 34 | E6: 42 | F6: 66 | G6: 45 | H6: 50 | I6: 42 | J6: 40 | K6: 67 | L6: 35 | M6: 15 | N6: 458 | O6: 458
A7: 2008 | B7: 9 | C7: 4 | D7: 10 | E7: 33 | F7: 36 | G7: 32 | H7: 20 | I7: 26 | J7: 54 | K7: 44 | L7: 16 | M7: 10 | N7: 294 | O7: 294
A8: 2009 | B8: 0 | C8: 2 | D8: 7 | E8: 18 | F8: 27 | G8: 27 | H8: 25 | I8: 38 | J8: 48 | K8: 47 | L8: 15 | M8: 13 | N8: =SUM(B8:M8) -> 267 | O8: 267
A9: 2010 | B9: 9 | C9: 7 | D9: 12 | E9: 36 | F9: 31 | G9: 44 | H9: 22 | I9: 28 | J9: 20 | K9: 27 | L9: 9 | M9: 5 | N9: 250 | O9: 250
A10: 2011 | B10: 2 | C10: 3 | D10: 6 | E10: 18 | F10: 17 | G10: 31 | H10: 21 | I10: 21 | J10: 25 | K10: 25 | L10: 15 | M10: 10 | N10: 194 | O10: 194
A11: 2012 | B11: 1 | C11: 15 | D11: 17 | E11: 31 | F11: 29 | G11: 28 | H11: 24 | I11: 25 | J11: 22 | K11: 40 | L11: 17 | M11: 3 | N11: 252 | O11: =SUM(B11:M11) -> 252
A12: 2013 | B12: 7 | C12: 6 | D12: 12 | E12: 16 | F12: 31 | G12: 47 | H12: 30 | I12: 27 | J12: 32 | K12: 39 | L12: 11 | M12: 8 | N12: 266 | O12: =SUM(B12:M12) -> 266
A13: 2014 | B13: 1 | C13: 4 | D13: 12 | E13: 27 | F13: 28 | G13: 35 | H13: 40 | I13: 23 | J13: 44 | K13: 49 | L13: 8 | M13: 15 | N13: 286 | O13: =SUM(B13:M13) -> 286
A14: 2015 | B14: 15 | C14: 12 | D14: 21 | E14: 32 | F14: 50 | G14: 32 | H14: 39 | N14: =SUM(B14:B14) -> 15 | O14: =SUM(B14:M14) -> 201
B16: change_04 | C16: %change_04 | E16: chg_prv_04-03 | F16: %chg_prv_04-03
A17: jan-dec | B17: -10 | C17: -43.47826087 | D17: jan | E17: -4 | F17: -23.52941176
A18: feb-jan | B18: 2 | C18: 15.38461538 | D18: feb | E18: 0 | F18: 0
A19: mar-feb | B19: 42 | C19: 280 | D19: mar | E19: 24 | F19: 72.72727273
A20: apr-mar | B20: 35 | C20: 61.40350877 | D20: apr | E20: -19 | F20: -17.11711712
A21: may-apr | B21: 11 | C21: 11.95652174 | D21: may | E21: 3 | F21: 3
A22: jun-may | B22: -12 | C22: -11.65048544 | D22: jun | E22: 18 | F22: 24.65753425
A23: jul-jun | B23: -7 | C23: -7.692307692 | D23: jul | E23: 16 | F23: 23.52941176
A24: aug-jul | B24: -3 | C24: -3.571428571 | D24: aug | E24: -16 | F24: -16.49484536
A25: sep-aug | B25: -15 | C25: -18.51851852 | D25: sep | E25: -40 | F25: -37.73584906
A26: oct-sep | B26: 5 | C26: 7.575757576 | D26: oct | E26: -32 | F26: -31.06796117
A27: nov-oct | B27: 11 | C27: 15.49295775 | D27: nov | E27: 31 | F27: 60.78431373
A28: dec-nov | B28: -60 | C28: -73.17073171 | D28: dec | E28: -1 | F28: -4.347826087
D29: ytd_avg_total | E29: -20 | F29: -2.509410289
B31: change_05 | C31: %change_05 | E31: chg_prv_05-04 | F31: %chg_prv_05-04
A32: jan-dec | B32: -17 | C32: -77.27272727 | D32: jan | E32: -8 | F32: -61.53846154
A33: feb-jan | B33: 19 | C33: 380 | D33: feb | E33: 9 | F33: 60
A34: mar-feb | B34: -2 | C34: -8.333333333 | D34: mar | E34: -35 | F34: -61.40350877
A35: apr-mar | B35: 40 | C35: 181.8181818 | D35: apr | E35: -30 | F35: -32.60869565
A36: may-apr | B36: 13 | C36: 20.96774194 | D36: may | E36: -28 | F36: -27.18446602
A37: jun-may | B37: -16 | C37: -21.33333333 | D37: jun | E37: -32 | F37: -35.16483516
A38: jul-jun | B38: -25 | C38: -42.37288136 | D38: jul | E38: -50 | F38: -59.52380952
A39: aug-jul | B39: 30 | C39: 88.23529412 | D39: aug | E39: -17 | F39: -20.98765432
A40: sep-aug | B40: 13 | C40: 20.3125 | D40: sep | E40: 11 | F40: 16.66666667
A41: oct-sep | B41: -5 | C41: -6.493506494 | D41: oct | E41: 1 | F41: 1.408450704
A42: nov-oct | B42: -26 | C42: -36.11111111 | D42: nov | E42: -36 | F42: -43.90243902
A43: dec-nov | B43: -33 | C43: -71.73913043 | D43: dec | E43: -9 | F43: -40.90909091
D44: ytd_avg_total | E44: -224 | F44: -28.82882883
B46: change_06 | C46: %change_06 | E46: chg_prv_06-05 | F46: %chg_prv_06-05
A47: jan-dec | B47: -4 | C47: -30.76923077 | D47: jan | E47: 4 | F47: 80
A48: feb-jan | B48: 29 | C48: 322.2222222 | D48: feb | E48: 14 | F48: 58.33333333
A49: mar-feb | B49: -9 | C49: -23.68421053 | D49: mar | E49: 7 | F49: 31.81818182
A50: apr-mar | B50: 30 | C50: 103.4482759 | D50: apr | E50: -3 | F50: -4.838709677
A51: may-apr | B51: 29 | C51: 49.15254237 | D51: may | E51: 13 | F51: 17.33333333
A52: jun-may | B52: -39 | C52: -44.31818182 | D52: jun | E52: -10 | F52: -16.94915254
A53: jul-jun | B53: -3 | C53: -6.12244898 | D53: jul | E53: 12 | F53: 35.29411765
A54: aug-jul | B54: 30 | C54: 65.2173913 | D54: aug | E54: 12 | F54: 18.75
A55: sep-aug | B55: -32 | C55: -42.10526316 | D55: sep | E55: -33 | F55: -42.85714286
A56: oct-sep | B56: 20 | C56: 45.45454545 | D56: oct | E56: -8 | F56: -11.11111111
A57: nov-oct | B57: -27 | C57: -42.1875 | D57: nov | E57: -9 | F57: -19.56521739
A58: dec-nov | B58: -22 | C58: -59.45945946 | D58: dec | E58: 2 | F58: 15.38461538
D59: ytd_avg_total | E59: 0 | F59: 0
B61: change_07 | C61: %change_07 | E61: chg_prv_07-06 | F61: %chg_prv_07-06
A62: jan-dec | B62: -5 | C62: -33.33333333 | D62: jan | E62: 1 | F62: 11.11111111
A63: feb-jan | B63: 2 | C63: 20 | D63: feb | E63: -26 | F63: -68.42105263
A64: mar-feb | B64: 22 | C64: 183.3333333 | D64: mar | E64: 5 | F64: 17.24137931
A65: apr-mar | B65: 8 | C65: 23.52941176 | D65: apr | E65: -17 | F65: -28.81355932
A66: may-apr | B66: 24 | C66: 57.14285714 | D66: may | E66: -22 | F66: -25
A67: jun-may | B67: -21 | C67: -31.81818182 | D67: jun | E67: -4 | F67: -8.163265306
A68: jul-jun | B68: 5 | C68: 11.11111111 | D68: jul | E68: 4 | F68: 8.695652174
A69: aug-jul | B69: -8 | C69: -16 | D69: aug | E69: -34 | F69: -44.73684211
A70: sep-aug | B70: -2 | C70: -4.761904762 | D70: sep | E70: -4 | F70: -9.090909091
A71: oct-sep | B71: 27 | C71: 67.5 | D71: oct | E71: 3 | F71: 4.6875
A72: nov-oct | B72: -32 | C72: -47.76119403 | D72: nov | E72: -2 | F72: -5.405405405
A73: dec-nov | B73: -20 | C73: -57.14285714 | D73: dec | E73: 0 | F73: 0
D74: ytd_avg_total | E74: -96 | F74: -17.32851986
B76: change_08 | C76: %change_08 | E76: chg_prv_08-07 | F76: %chg_prv_08-07
A77: jan-dec | B77: -6 | C77: -40 | D77: jan | E77: -1 | F77: -10
A78: feb-jan | B78: -5 | C78: -55.55555556 | D78: feb | E78: -8 | F78: -66.66666667
A79: mar-feb | B79: 6 | C79: 150 | D79: mar | E79: -24 | F79: -70.58823529
A80: apr-mar | B80: 23 | C80: 230 | D80: apr | E80: -9 | F80: -21.42857143
A81: may-apr | B81: 3 | C81: 9.090909091 | D81: may | E81: -30 | F81: -45.45454545
A82: jun-may | B82: -4 | C82: -11.11111111 | D82: jun | E82: -13 | F82: -28.88888889
A83: jul-jun | B83: -12 | C83: -37.5 | D83: jul | E83: -30 | F83: -60
A84: aug-jul | B84: 6 | C84: 30 | D84: aug | E84: -16 | F84: -38.0952381
A85: sep-aug | B85: 28 | C85: 107.6923077 | D85: sep | E85: 14 | F85: 35
A86: oct-sep | B86: -10 | C86: -18.51851852 | D86: oct | E86: -23 | F86: -34.32835821
A87: nov-oct | B87: -28 | C87: -63.63636364 | D87: nov | E87: -19 | F87: -54.28571429
A88: dec-nov | B88: -6 | C88: -37.5 | D88: dec | E88: -5 | F88: -33.33333333
D89: ytd_avg_total | E89: -164 | F89: -35.80786026
B91: change_09 | C91: %change_09 | E91: chg_prv_09-08 | F91: %chg_prv_09-08
A92: jan-dec | B92: -10 | C92: -100 | D92: jan
A93: feb-jan | B93: 2 | C93: 22.2 | D93: feb
A94: mar-feb | B94: 5 | C94: 250 | D94: mar
A95: apr-mar | B95: 11 | C95: 157.1428571 | D95: apr
A96: may-apr | B96: 9 | C96: 50 | D96: may
A97: jun-may | B97: 0 | C97: 0 | D97: jun
A98: jul-jun | B98: -2 | C98: -7.407407407 | D98: jul
A99: aug-jul | B99: 13 | C99: 52 | D99: aug
A100: sep-aug | B100: 10 | C100: 26.31578947 | D100: sep
A101: oct-sep | B101: -1 | C101: -2.083333333 | D101: oct
A102: nov-oct | B102: -32 | C102: -68.08510638 | D102: nov
A103: dec-nov | B103: -2 | C103: -13.33333333 | D103: dec
D104: ytd_avg_total
B106: jan-dec | C106: feb-jan | D106: mar-feb | E106: apr-mar | F106: may-apr | G106: jun-may | H106: jul-jun | I106: aug-jul | J106: sep-aug | K106: oct-sep | L106: nov-oct | M106: dec-nov
A107: change_09 | B107: =B8-M7 -> -10 | C107: =C8-B8 -> 2 | D107: 5 | E107: 11 | F107: 9 | G107: 0 | H107: -2 | I107: 13 | J107: 10 | K107: -1 | L107: -32 | M107: -2 | O107: -10 | P107: 2 | Q107: 5 | R107: 11 | S107: 9 | T107: 0 | U107: -2 | V107: 13 | W107: 10 | X107: -1 | Y107: -32 | Z107: -2
A108: %change_09 | B108: =(B107/M7)*100 -> -100 | C108: =(C107/B7)*100 -> 22.22222222 | D108: =(D107/C8)*100 -> 250 | E108: 157.1428571 | F108: 50 | G108: 0 | H108: -7.407407407 | I108: 52 | J108: 26.31578947 | K108: -2.083333333 | L108: -68.08510638 | M108: -13.33333333 | O108: -100 | Q108: 250 | R108: 157.1428571 | S108: 50 | T108: 0 | U108: -7.407407407 | V108: 52 | W108: 26.31578947 | X108: -2.083333333 | Y108: -68.08510638 | Z108: -13.33333333
B109: jan | C109: feb | D109: mar | E109: apr | F109: may | G109: jun | H109: jul | I109: aug | J109: sep | K109: oct | L109: nov | M109: dec | N109: ytd_avg_total
A110: chg_prv_09-08 | B110: =B8-B7 -> -9 | C110: -2 | D110: -3 | E110: -15 | F110: -9 | G110: -5 | H110: 5 | I110: 12 | J110: -6 | K110: 3 | L110: -1 | M110: 3 | N110: =O8-O7 -> -27
A111: %chg_prv_09-08 | B111: =(B110/B7)*100 -> -100 | C111: -50 | D111: -30 | E111: -45.45454545 | F111: -25 | G111: -15.625 | H111: 25 | I111: 46.15384615 | J111: -11.11111111 | K111: 6.818181818 | L111: -6.25 | M111: 30 | N111: =(N110/O7)*100 -> -9.183673469
B113: jan-dec | C113: feb-jan | D113: mar-feb | E113: apr-mar | F113: may-apr | G113: jun-may | H113: jul-jun | I113: aug-jul | J113: sep-aug | K113: oct-sep | L113: nov-oct | M113: dec-nov
A114: change_10 | B114: =B9-M8 -> -4 | C114: =C9-B9 -> -2 | D114: 5 | E114: 24 | F114: -5 | G114: 13 | H114: -22 | I114: 6 | J114: -8 | K114: 7 | L114: -18 | M114: -4
A115: %change_10 | B115: =(B114/M8)*100 -> -30.76923077 | C115: =(C114/B9)*100 -> -22.22222222 | D115: 71.42857143 | E115: 200 | F115: -13.88888889 | G115: 41.93548387 | H115: -50 | I115: 27.27272727 | J115: -28.57142857 | K115: 35 | L115: -66.66666667 | M115: -44.44444444
B116: jan | C116: feb | D116: mar | E116: apr | F116: may | G116: jun | H116: jul | I116: aug | J116: sep | K116: oct | L116: nov | M116: dec | N116: ytd_avg_total
A117: chg_prv_10-09 | B117: =B9-B8 -> 9 | C117: 5 | D117: 5 | E117: 18 | F117: 4 | G117: 17 | H117: -3 | I117: -10 | J117: -28 | K117: -20 | L117: -6 | M117: -8 | N117: =O9-O8 -> -17
A118: %chg_prv_10-09 | B118: =(B117/B8)*100 ->  | C118: 250 | D118: 71.42857143 | E118: 100 | F118: 14.81481481 | G118: 62.96296296 | H118: -12 | I118: -26.31578947 | J118: -58.33333333 | K118: -42.55319149 | L118: -40 | M118: -61.53846154 | N118: =(N117/O8)*100 -> -6.367041199
B120: jan-dec | C120: feb-jan | D120: mar-feb | E120: apr-mar | F120: may-apr | G120: jun-may | H120: jul-jun | I120: aug-jul | J120: sep-aug | K120: oct-sep | L120: nov-oct | M120: dec-nov
A121: change_11 | B121: =B10-M9 -> -3 | C121: =C10-B10 -> 1 | D121: 3 | E121: 12 | F121: -1 | G121: 14 | H121: -10 | I121: 0 | J121: 4 | K121: 0 | L121: -10 | M121: -5
A122: %change_11 | B122: =(B121/M9)*100 -> -60 | C122: =(C121/B10)*100 -> 50 | D122: 100 | E122: 200 | F122: -5.555555556 | G122: 82.35294118 | H122: -32.25806452 | I122: 0 | J122: 19.04761905 | K122: 0 | L122: -40 | M122: -33.33333333
B123: jan | C123: feb | D123: mar | E123: apr | F123: may | G123: jun | H123: jul | I123: aug | J123: sep | K123: oct | L123: nov | M123: dec | N123: ytd_avg_total
A124: chg_prv_11-10 | B124: =B10-B9 -> -7 | C124: -4 | D124: -6 | E124: -18 | F124: -14 | G124: -13 | H124: -1 | I124: -7 | J124: 5 | K124: -2 | L124: 6 | M124: 5 | N124: =O10-O9 -> -56
A125: %chg_prv_11-10 | B125: =(B124/B9)*100 -> -77.77777778 | C125: -57.14285714 | D125: -50 | E125: -50 | F125: -45.16129032 | G125: -29.54545455 | H125: -4.545454545 | I125: -25 | J125: 25 | K125: -7.407407407 | L125: 66.66666667 | M125: 100 | N125: =(N124/O9)*100 -> -22.4
B127: jan-dec | C127: feb-jan | D127: mar-feb | E127: apr-mar | F127: may-apr | G127: jun-may | H127: jul-jun | I127: aug-jul | J127: sep-aug | K127: oct-sep | L127: nov-oct | M127: dec-nov
A128: change_12 | B128: =B11-M10 -> -9 | C128: =C11-B11 -> 14 | D128: 2 | E128: 14 | F128: -2 | G128: -1 | H128: -4 | I128: 1 | J128: -3 | K128: 18 | L128: -23 | M128: -14
A129: %change_12 | B129: =(B128/M10)*100 -> -90 | C129: =(C128/B11)*100 -> 1400 | D129: 13.33333333 | E129: 82.35294118 | F129: -6.451612903 | G129: -3.448275862 | H129: -14.28571429 | I129: 4.166666667 | J129: -12 | K129: 81.81818182 | L129: -57.5 | M129: -82.35294118
B130: jan | C130: feb | D130: mar | E130: apr | F130: may | G130: jun | H130: jul | I130: aug | J130: sep | K130: oct | L130: nov | M130: dec | N130: ytd_avg_total
A131: chg_prv_12-11 | B131: =B11-B10 -> -1 | C131: 12 | D131: 11 | E131: 13 | F131: 12 | G131: -3 | H131: 3 | I131: 4 | J131: -3 | K131: 15 | L131: 2 | M131: -7 | N131: =O11-O10 -> 58
A132: %chg_prv_12-11 | B132: =(B131/B10)*100 -> -50 | C132: 400 | D132: 183.3333333 | E132: 72.22222222 | F132: 70.58823529 | G132: -9.677419355 | H132: 14.28571429 | I132: 19.04761905 | J132: -12 | K132: 60 | L132: 13.33333333 | M132: -70 | N132: =(N131/O10)*100 -> 29.89690722
B134: jan-dec | C134: feb-jan | D134: mar-feb | E134: apr-mar | F134: may-apr | G134: jun-may | H134: jul-jun | I134: aug-jul | J134: sep-aug | K134: oct-sep | L134: nov-oct | M134: dec-nov
A135: change_13 | B135: =B12-M11 -> 4 | C135: =C12-B12 -> -1 | D135: 6 | E135: 4 | F135: 15 | G135: 16 | H135: -17 | I135: -3 | J135: 5 | K135: 7 | L135: -28 | M135: -3
A136: %change_13 | B136: =(B135/M11)*100 -> 133.3333333 | C136: =(C135/B12)*100 -> -14.28571429 | D136: 100 | E136: 33.33333333 | F136: 93.75 | G136: 51.61290323 | H136: -36.17021277 | I136: -10 | J136: 18.51851852 | K136: 21.875 | L136: -71.79487179 | M136: -27.27272727
B137: jan | C137: feb | D137: mar | E137: apr | F137: may | G137: jun | H137: jul | I137: aug | J137: sep | K137: oct | L137: nov | M137: dec | N137: ytd_avg_total
A138: chg_prv_13-12 | B138: =B12-B11 -> 6 | C138: -9 | D138: -5 | E138: -15 | F138: 2 | G138: 19 | H138: 6 | I138: 2 | J138: 10 | K138: -1 | L138: -6 | M138: 5 | N138: =O30-O11 -> -252
A139: %chg_prv_13-12 | B139: =(B138/B11)*100 -> 600 | C139: -60 | D139: -29.41176471 | E139: -48.38709677 | F139: 6.896551724 | G139: 67.85714286 | H139: 25 | I139: 8 | J139: 45.45454545 | K139: -2.5 | L139: -35.29411765 | M139: 166.6666667 | N139: =(N138/O11)*100 -> -100
B141: jan-dec | C141: feb-jan | D141: mar-feb | E141: apr-mar | F141: may-apr | G141: jun-may | H141: jul-jun | I141: aug-jul | J141: sep-aug | K141: oct-sep | L141: nov-oct | M141: dec-nov
A142: change_14 | B142: =B13-M12 -> -7 | C142: =C13-B13 -> 3 | D142: 8 | E142: 15 | F142: 1 | G142: 7 | H142: 5 | I142: -17 | J142: 21 | K142: 5 | L142: -41 | M142: 7
A143: %change_14 | B143: =(B142/M12)*100 -> -87.5 | C143: =(C142/B13)*100 -> 300 | D143: 200 | E143: 125 | F143: 3.703703704 | G143: 25 | H143: 14.28571429 | I143: -42.5 | J143: 91.30434783 | K143: 11.36363636 | L143: -83.67346939 | M143: 87.5
B144: jan | C144: feb | D144: mar | E144: apr | F144: may | G144: jun | H144: jul | I144: aug | J144: sep | K144: oct | L144: nov | M144: dec | N144: ytd_avg_total
A145: chg_prv_14-13 | B145: =B13-B12 -> -6 | C145: -2 | D145: 0 | E145: 11 | F145: -3 | G145: -12 | H145: 10 | I145: -4 | J145: 12 | K145: 10 | L145: -3 | M145: 7 | N145: =O13-O12 -> 20
A146: %chg_prv_14-13 | B146: =(B145/B12)*100 -> -85.71428571 | C146: -33.33333333 | D146: 0 | E146: 68.75 | F146: -9.677419355 | G146: -25.53191489 | H146: 33.33333333 | I146: -14.81481481 | J146: 37.5 | K146: 25.64102564 | L146: -27.27272727 | M146: 87.5 | N146: =(N145/O12)*100 -> 7.518796992
B148: jan-dec | C148: feb-jan | D148: mar-feb | E148: apr-mar | F148: may-apr | G148: jun-may | H148: jul-jun | I148: aug-jul | J148: sep-aug | K148: oct-sep | L148: nov-oct | M148: dec-nov
A149: change_15 | B149: =B14-M13 -> 0 | C149: =C14-B13 -> 11 | D149: 17 | E149: 20 | F149: 23 | G149: 4 | H149: 4
A150: %change_15 | B150: =(B149/M13)*100 -> 0 | C150: =(C149/B14)*100 -> 73.33333333 | D150: 141.6666667 | E150: 95.23809524 | F150: 71.875 | G150: 8 | H150: 12.5
B151: jan | C151: feb | D151: mar | E151: apr | F151: may | G151: jun | H151: jul | I151: aug | J151: sep | K151: oct | L151: nov | M151: dec | N151: ytd_avg_total
A152: chg_prv_15-14 | B152: =B14-B13 -> 14 | C152: 8 | D152: 9 | E152: 5 | F152: 22 | G152: -3 | H152: -1 | N152: =N14-N13 -> -271
A153: %chg_prv_15-14 | B153: =(B152/B13)*100 -> 1400 | C153: 200 | D153: 75 | E153: 18.51851852 | F153: 78.57142857 | G153: -8.571428571 | H153: -2.5 | N153: =(N152/N13)*100 -> -94.75524476
A155: v_rbp1_r96 | B155: jan | C155: feb | D155: mar | E155: apr | F155: may | G155: jun | H155: jul | I155: aug | J155: sep | K155: oct | L155: nov | M155: dec | N155: total
A156: 2003 | B156: 1880703.462 | C156: 2164083.474 | D156: 4166581.56 | E156: 13970600.11 | F156: 12541528.47 | G156: 9170924.234 | H156: 8120326.923 | I156: 12967498.37 | J156: 13435992.39 | K156: 13268674.25 | L156: 6784141.373 | M156: 2684214.78 | N156: =SUM(B156:M156) -> 101155269.4 | O156: =SUM(B156:M156) -> 101155269.4
A157: 2004 | B157: 1151275.084 | C157: 2112337.773 | D157: 7658035.912 | E157: 12300867.17 | F157: 13439678.01 | G157: 11434729.04 | H157: 9242968.159 | I157: 10782031.37 | J157: 8156222.404 | K157: 9405877.913 | L157: 12355236.11 | M157: 3383629.625 | N157: 101422888.6 | O157: 101422888.6
A158: 2005 | B158: 756232.5729 | C158: 3158964.003 | D158: 2650870.102 | E158: 8120703.117 | F158: 9527282.551 | G158: 8168516.729 | H158: 4714806.883 | I158: 8981102.794 | J158: 9975056.667 | K158: 7090498.742 | L158: 5207987.476 | M158: 1702506.106 | N158: 70054527.74 | O158: 70054527.74
A159: 2006 | B159: 1084894 | C159: 5017356 | D159: 4733180 | E159: 7172376 | F159: 9189773 | G159: 6175630 | H159: 5971864 | I159: 8596861 | J159: 5067602 | K159: 8476200 | L159: 4633394 | M159: 1790851 | N159: =SUM(B159:M159) -> 67909981 | O159: 67909981
A160: 2007 | B160: 1102871 | C160: 1373385 | D160: 4176891 | E160: 5601169 | F160: 7144987 | G160: 5328992 | H160: 5728346 | I160: 5834637 | J160: 5775684 | K160: 8677197 | L160: 4481559 | M160: 2182538 | N160: 57408256 | O160: 57408256
A161: 2008 | B161: 1156933 | C161: 473485 | D161: 1118334 | E161: 3486225 | F161: 3538301 | G161: 4803499 | H161: 2135767 | I161: 3567614 | J161: 5844092 | K161: 5122250 | L161: 2395378 | M161: 984941 | N161: 34626819 | O161: 34626819
A162: 2009 | B162: 0 | C162: 174631 | D162: 1568000 | E162: 1725032.089 | F162: 3208910 | G162: 3106014 | H162: 2783432 | I162: 3816606 | J162: 6030372 | K162: 4114487 | L162: 1618952 | M162: 1682462 | N162: 29828898.09 | O162: 29828898.09
A163: 2010 | B163: 697571 | C163: 822719 | D163: 1303454 | E163: 3193900 | F163: 4651741 | G163: 4341755 | H163: 1915703 | I163: 2525903 | J163: 2501502 | K163: 3778242 | L163: 2343967 | M163: 566500.438 | N163: 28642957.44 | O163: =SUM(B163:M163) -> 28642957.44
A164: 2011 | B164: 843490 | C164: 616750 | D164: 885627.8169 | E164: 2754563.248 | F164: 2373177.822 | G164: 3183077 | H164: 2867974 | I164: 2454506 | J164: 2912481.912 | K164: 1324935 | L164: 1637777 | M164: 1297443.27 | N164: 23151803.07 | O164: 23151803.07
A165: 2012 | B165: 89787.16112 | C165: 689838 | D165: 2185894.635 | E165: 3791320 | F165: 3341237 | G165: 3995248 | H165: 2435292 | I165: 3438670 | J165: 2897223 | K165: 6477850 | L165: 2419290 | M165: 251493 | N165: =SUM(B165:M165) -> 32013142.8 | O165: 32013142.8
A166: 2013 | B166: 1020642 | C166: 1043878 | D166: 1362528 | E166: 2642019 | F166: 4252359 | G166: 6308343 | H166: 4604164 | I166: 2692104 | J166: 5560593 | K166: 5812582 | L166: 1619628 | M166: 1028475 | N166: =SUM(B166:M166) -> 37947315 | O166: 37947315
A167: 2014 | B167: 103280 | C167: 482591 | D167: 1527881 | E167: 3153847 | F167: 3508141 | G167: 4630754 | H167: 5251590.602 | I167: 4193430 | J167: 5115006 | K167: 5690098 | L167: 1176702 | M167: 1883555 | N167: =SUM(B167:M167) -> 36716875.6 | O167: 36716875.6
A168: 2015 | B168: 2742 | C168: 2458 | D168: 4943 | E168: 5839 | F168: 9477 | G168: 7443 | H168: 9172 | N168: =SUM(B168:B168) -> 2742 | O168: 42074
A170: 2003 | B170: =B156/1000 -> 1880.703462 | C170: =C156/1000 -> 2164.083474 | D170: 4166.58156 | E170: 13970.60011 | F170: 12541.52847 | G170: 9170.924234 | H170: 8120.326923 | I170: 12967.49837 | J170: 13435.99239 | K170: 13268.67425 | L170: 6784.141373 | M170: 2684.21478 | N170: 101155.2694 | O170: 101155.2694
A171: 2004 | B171: 1151.275084 | C171: =C157/1000 -> 2112.337773 | D171: 7658.035912 | E171: 12300.86717 | F171: 13439.67801 | G171: 11434.72904 | H171: 9242.968159 | I171: 10782.03137 | J171: 8156.222404 | K171: 9405.877913 | L171: 12355.23611 | M171: 3383.629625 | N171: 101422.8886 | O171: 101422.8886
A172: 2005 | B172: 756.2325729 | C172: =C158/1000 -> 3158.964003 | D172: 2650.870102 | E172: 8120.703117 | F172: 9527.282551 | G172: 8168.516729 | H172: 4714.806883 | I172: 8981.102794 | J172: 9975.056667 | K172: 7090.498742 | L172: 5207.987476 | M172: 1702.506106 | N172: 70054.52774 | O172: 70054.52774
A173: 2006 | B173: 1084.894 | C173: =C159/1000 -> 5017.356 | D173: 4733.18 | E173: 7172.376 | F173: 9189.773 | G173: 6175.63 | H173: 5971.864 | I173: 8596.861 | J173: 5067.602 | K173: 8476.2 | L173: 4633.394 | M173: 1790.851 | N173: =SUM(B173:M173) -> 67909.981 | O173: 67909.981
A174: 2007 | B174: 1102.871 | C174: =C160/1000 -> 1373.385 | D174: 4176.891 | E174: 5601.169 | F174: 7144.987 | G174: 5328.992 | H174: 5728.346 | I174: 5834.637 | J174: 5775.684 | K174: 8677.197 | L174: 4481.559 | M174: 2182.538 | N174: 57408.256 | O174: =SUM(B174:M174) -> 57408.256
A175: 2008 | B175: 1156.933 | C175: =C161/1000 -> 473.485 | D175: 1118.334 | E175: 3486.225 | F175: 3538.301 | G175: 4803.499 | H175: 2135.767 | I175: 3567.614 | J175: 5844.092 | K175: 5122.25 | L175: =L161/1000 -> 2395.378 | M175: =M161/1000 -> 984.941 | N175: 34626.819 | O175: 34626.819
A176: 2009 | B176: 0 | C176: =C162/1000 -> 174.631 | D176: 1568 | E176: 1725.032089 | F176: 3208.91 | G176: 3106.014 | H176: 2783.432 | I176: 3816.606 | J176: 6030.372 | K176: 4114.487 | L176: 1618.952 | M176: 1682.462 | N176: 29828.89809 | O176: 29828.89809
A177: 2010 | B177: 697.571 | C177: =C163/1000 -> 822.719 | D177: 1303.454 | E177: 3193.9 | F177: 4651.741 | G177: 4341.755 | H177: 1915.703 | I177: 2525.903 | J177: 2501.502 | K177: 3778.242 | L177: 2343.967 | M177: 566.500438 | N177: 28642.95744 | O177: 28642.95744
A178: 2011 | B178: 843.49 | C178: =C164/1000 -> 616.75 | D178: 885.6278169 | E178: 2754.563248 | F178: 2373.177822 | G178: 3183.077 | H178: 2867.974 | I178: 2454.506 | J178: 2912.481912 | K178: 1324.935 | L178: 1637.777 | M178: 1297.44327 | N178: 23151.80307 | O178: 23151.80307
A179: 2012 | B179: =B165/1000 -> 89.78716112 | C179: 689.838 | D179: 2185.894635 | E179: 3791.32 | F179: 3341.237 | G179: 3995.248 | H179: 2435.292 | I179: 3438.67 | J179: =J165/1000 -> 2897.223 | K179: =K165/1000 -> 6477.85 | L179: =L165/1000 -> 2419.29 | M179: =M165/1000 -> 251.493 | N179: =SUM(B179:M179) -> 32013.1428 | O179: 32013.1428
A180: 2013 | B180: =B166/1000 -> 1020.642 | C180: 1043.878 | D180: 1362.528 | E180: 2642.019 | F180: 4252.359 | G180: 6308.343 | H180: 4604.164 | I180: 2692.104 | J180: 5560.593 | K180: 5812.582 | L180: 1619.628 | M180: 1028.475 | N180: =SUM(B180:M180) -> 37947.315 | O180: =SUM(B180:M180) -> 37947.315
A181: 2014 | B181: =B167/1000 -> 103.28 | C181: 482.591 | D181: 1527.881 | E181: 3153.847 | F181: 3508.141 | G181: 4630.754 | H181: 5251.590602 | I181: 4193.43 | J181: 5115.006 | K181: 5690.098 | L181: 1176.702 | M181: 1883.555 | N181: =SUM(B181:M181) -> 36716.8756 | O181: =SUM(B181:M181) -> 36716.8756
A182: 2015 | B182: =B168/1000 -> 2.742 | C182: =C168/1000 -> 2.458 | D182: 4.943 | E182: 5.839 | F182: 9.477 | G182: 7.443 | H182: 9.172 | N182: =SUM(B182:B182) -> 2.742 | O182: =SUM(B182:M182) -> 42.074
B184: jan-dec | C184: feb-jan | D184: mar-feb | E184: apr-mar | F184: may-apr | G184: jun-may | H184: jul-jun | I184: aug-jul | J184: sep-aug | K184: oct-sep | L184: nov-oct | M184: dec-nov
A185: change_04 | B185: =B157-M156 -> -1532939.696 | C185: =C157-B157 -> 961062.6892 | D185: 5545698.139 | E185: 4642831.26 | F185: 1138810.84 | G185: -2004948.97 | H185: -2191760.883 | I185: 1539063.211 | J185: -2625808.966 | K185: =K157-J157 -> 1249655.51 | L185: =L157-K157 -> 2949358.198 | M185: =M157-L157 -> -8971606.487
A186: %change_04 | B186: =(B185/M156)*100 -> -57.10942759 | C186: =(C185/B157)*100 -> 83.47811074 | D186: 262.5384164 | E186: 60.6269194 | F186: 9.257972012 | G186: -14.91813248 | H186: -19.1675804 | I186: 16.65117941 | J186: -24.35356452 | K186: 15.3214987 | L186: 31.35654348 | M186: -72.61380038
B187: jan | C187: feb | D187: mar | E187: apr | F187: may | G187: jun | H187: jul | I187: aug | J187: sep | K187: oct | L187: nov | M187: dec | N187: ytd_avg_total
A188: chg_prv_04-03 | B188: =B157-B156 -> -729428.3784 | C188: -51745.7011 | D188: 3491454.351 | E188: -1669732.941 | F188: 898149.5461 | G188: 2263804.808 | H188: 1122641.236 | I188: -2185466.999 | J188: -5279769.982 | K188: -3862796.338 | L188: 5571094.738 | M188: 699414.8451 | N188: =O157-O156 -> 267619.1839
A189: %chg_prv_04-03 | B189: =(B188/B156)*100 -> -38.78486923 | C189: -2.391113916 | D189: 83.79661602 | E189: -11.95176247 | F189: 7.161404198 | G189: 24.6845874 | H189: 13.82507436 | I189: -16.85342028 | J189: -39.29572026 | K189: -29.1121499 | L189: 82.11937858 | M189: 26.0565902 | N189: =(N188/O156)*100 -> 0.2645627712
B191: jan-dec | C191: feb-jan | D191: mar-feb | E191: apr-mar | F191: may-apr | G191: jun-may | H191: jul-jun | I191: aug-jul | J191: sep-aug | K191: oct-sep | L191: nov-oct | M191: dec-nov
A192: change_05 | B192: =B158-M157 -> -2627397.052 | C192: =C158-B158 -> 2402731.43 | D192: -508093.9009 | E192: 5469833.015 | F192: 1406579.434 | G192: -1358765.822 | H192: -3453709.846 | I192: =I158-H158 -> 4266295.911 | J192: =J158-I158 -> 993953.8728 | K192: =K158-J158 -> -2884557.925 | L192: =L158-K158 -> -1882511.266 | M192: =M158-L158 -> -3505481.37
A193: %change_05 | B193: =(B192/M157)*100 -> -77.65025559 | C193: =(C192/B158)*100 -> 317.7238744 | D193: -16.08419407 | E193: 206.3410429 | F193: 17.32090699 | G193: -14.2618403 | H193: -42.28074644 | I193: 90.48718256 | J193: 11.06716954 | K193: -28.91770965 | L193: -26.54977223 | M193: -67.30971198
B194: jan | C194: feb | D194: mar | E194: apr | F194: may | G194: jun | H194: jul | I194: aug | J194: sep | K194: oct | L194: nov | M194: dec | N194: ytd_avg_total
A195: chg_prv_05-04 | B195: =B158-B157 -> -395042.5107 | C195: 1046626.23 | D195: -5007165.81 | E195: -4180164.055 | F195: -3912395.461 | G195: -3266212.313 | H195: =H158-H157 -> -4528161.276 | I195: -1800928.575 | J195: 1818834.263 | K195: -2315379.171 | L195: -7147248.635 | M195: -1681123.518 | N195: =O158-O157 -> -31368360.83
A196: %chg_prv_05-04 | B196: =(B195/B157)*100 -> -34.31347698 | C196: 49.54824193 | D196: -65.38446499 | E196: -33.98267778 | F196: -29.1107827 | G196: -28.56396772 | H196: -48.99033729 | I196: -16.7030545 | J196: 22.29995913 | K196: -24.61630049 | L196: -57.84793241 | M196: -49.68402884 | N196: =(N195/O157)*100 -> -30.92828579
B198: jan-dec | C198: feb-jan | D198: mar-feb | E198: apr-mar | F198: may-apr | G198: jun-may | H198: jul-jun | I198: aug-jul | J198: sep-aug | K198: oct-sep | L198: nov-oct | M198: dec-nov
A199: change_06 | B199: =B159-M158 -> -617612.1061 | C199: =C159-B159 -> 3932462 | D199: -284176 | E199: 2439196 | F199: 2017397 | G199: -3014143 | H199: -203766 | I199: 2624997 | J199: -3529259 | K199: 3408598 | L199: =L159-K159 -> -3842806 | M199: =M159-L159 -> -2842543
A200: %change_06 | B200: =(B199/M158)*100 -> -36.27664558 | C200: =(C199/B159)*100 -> 362.4743062 | D200: -5.663859611 | E200: 51.53397927 | F200: 28.12731792 | G200: -32.79888415 | H200: -3.29951762 | I200: 43.95607469 | J200: -41.05287965 | K200: 67.26254351 | L200: -45.33642434 | M200: -61.34904565
B201: jan | C201: feb | D201: mar | E201: apr | F201: may | G201: jun | H201: jul | I201: aug | J201: sep | K201: oct | L201: nov | M201: dec | N201: ytd_avg_total
A202: chg_prv_06-05 | B202: =B159-B158 -> 328661.4271 | C202: 1858391.997 | D202: 2082309.898 | E202: -948327.1167 | F202: -337509.5507 | G202: -1992886.729 | H202: =H159-H158 -> 1257057.117 | I202: -384241.7939 | J202: -4907454.667 | K202: 1385701.258 | L202: -574593.4759 | M202: 88344.89387 | N202: =O159-O158 -> -2144546.741
A203: %chg_prv_06-05 | B203: =(B202/B158)*100 -> 43.46036377 | C203: 58.8291603 | D203: 78.55194023 | E203: -11.67789418 | F203: -3.542558425 | G203: -24.39716775 | H203: 26.66190045 | I203: -4.278336444 | J203: -49.19726103 | K203: 19.54307177 | L203: -11.03292737 | M203: 5.189108782 | N203: =(N202/O158)*100 -> -3.061253584
B205: jan-dec | C205: feb-jan | D205: mar-feb | E205: apr-mar | F205: may-apr | G205: jun-may | H205: jul-jun | I205: aug-jul | J205: sep-aug | K205: oct-sep | L205: nov-oct | M205: dec-nov
A206: change_07 | B206: =B160-M159 -> -687980 | C206: =C160-B160 -> 270514 | D206: 2803506 | E206: 1424278 | F206: 1543818 | G206: -1815995 | H206: 399354 | I206: =I160-H160 -> 106291 | J206: =J160-I160 -> -58953 | K206: =K160-J160 -> 2901513 | L206: =L160-K160 -> -4195638 | M206: =M160-L160 -> -2299021
A207: %change_07 | B207: =(B206/M159)*100 -> -38.416373 | C207: =(C206/B160)*100 -> 24.52816331 | D207: 204.1311067 | E207: 34.09899851 | F207: 27.56242492 | G207: -25.41635135 | H207: 7.493987606 | I207: 1.855526883 | J207: -1.010397048 | K207: 50.23669924 | L207: -48.3524576 | M207: -51.29958124
B208: jan | C208: feb | D208: mar | E208: apr | F208: may | G208: jun | H208: jul | I208: aug | J208: sep | K208: oct | L208: nov | M208: dec | N208: ytd_avg_total
A209: chg_prv_07-06 | B209: =B160-B159 -> 17977 | C209: -3643971 | D209: -556289 | E209: -1571207 | F209: -2044786 | G209: -846638 | H209: -243518 | I209: =I160-I159 -> -2762224 | J209: =J160-J159 -> 708082 | K209: =K160-K159 -> 200997 | L209: =L160-L159 -> -151835 | M209: =M160-M159 -> 391687 | N209: =O160-O159 -> -10501725
A210: %chg_prv_07-06 | B210: =(B209/B159)*100 -> 1.657028244 | C210: -72.62731606 | D210: -11.75296524 | E210: -21.90636687 | F210: -22.2506693 | G210: -13.70933816 | H210: -4.077755287 | I210: -32.13061139 | J210: 13.97272319 | K210: 2.371310257 | L210: -3.276971481 | M210: 21.87155715 | N210: =(N209/O159)*100 -> -15.46418486
B212: jan-dec | C212: feb-jan | D212: mar-feb | E212: apr-mar | F212: may-apr | G212: jun-may | H212: jul-jun | I212: aug-jul | J212: sep-aug | K212: oct-sep | L212: nov-oct | M212: dec-nov
A213: change_08 | B213: =B161-M160 -> -1025605 | C213: =C161-B161 -> -683448 | D213: 644849 | E213: 2367891 | F213: 52076 | G213: 1265198 | H213: -2667732 | I213: =I161-H161 -> 1431847 | J213: =J161-I161 -> 2276478 | K213: =K161-J161 -> -721842 | L213: =L161-K161 -> -2726872 | M213: =M161-L161 -> -1410437
A214: %change_08 | B214: =(B213/M160)*100 -> -46.99139259 | C214: =(C213/B161)*100 -> -59.07412097 | D214: 136.1920652 | E214: 211.7337933 | F214: 1.493764746 | G214: 35.75721794 | H214: -55.53726565 | I214: 67.04134861 | J214: 63.80953769 | K214: -12.3516536 | L214: -53.2358241 | M214: -58.88160449
B215: jan | C215: feb | D215: mar | E215: apr | F215: may | G215: jun | H215: jul | I215: aug | J215: sep | K215: oct | L215: nov | M215: dec | N215: ytd_avg_total
A216: chg_prv_08-07 | B216: =B161-B160 -> 54062 | C216: -899900 | D216: -3058557 | E216: -2114944 | F216: -3606686 | G216: -525493 | H216: -3592579 | I216: -2267023 | J216: 68408 | K216: -3554947 | L216: -2086181 | M216: -1197597 | N216: =O161-O160 -> -22781437
A217: %chg_prv_08-07 | B217: =(B216/B160)*100 -> 4.901933227 | C217: -65.52423392 | D217: -73.22568389 | E217: -37.75897496 | F217: -50.47855231 | G217: -9.861020621 | H217: -62.7158171 | I217: -38.85456799 | J217: 1.184413829 | K217: -40.96884051 | L217: -46.55034108 | M217: -54.87175939 | N217: =(N216/O160)*100 -> -39.68320689
B219: jan-dec | C219: feb-jan | D219: mar-feb | E219: apr-mar | F219: may-apr | G219: jun-may | H219: jul-jun | I219: aug-jul | J219: sep-aug | K219: oct-sep | L219: nov-oct | M219: dec-nov
A220: change_09 | B220: =B162-M161 -> -984941 | C220: =C162-B162 -> 174631 | D220: 1393369 | E220: 157032.0893 | F220: 1483877.911 | G220: -102896 | H220: -322582 | I220: =I162-H162 -> 1033174 | J220: =J162-I162 -> 2213766 | K220: =K162-J162 -> -1915885 | L220: =L162-K162 -> -2495535 | M220: =M162-L162 -> 63510
A221: %change_09 | B221: =(B220/M161)*100 -> -100 | C221: =(C220/B162)*100 ->  | D221: 797.8932721 | E221: 10.01480161 | F221: 86.02030767 | G221: -3.206571702 | H221: -10.38572267 | I221: 37.11870813 | J221: 58.0035246 | K221: -31.77059392 | L221: -60.65239725 | M221: 3.922908153
... 39 more rows

Sheet graphs
